Cogmind - Beta 13 @@@ ROGUE MODE // 2024.05.29 @ 15:15:08 Player: Ragemodebzrk Result: Destroyed by G-34 Mercenary with Small Laser Performance ------------- Evolutions (0) 0 Regions Visited (1) 200 Robots Destroyed (16) 80 Value Destroyed (341) 341 Prototype IDs (2) 40 Alien Tech Used (0) 0 Bonus (0) 0 TOTAL SCORE: 661 Bonus ------- None Cogmind --------- Core Integrity 0/250 Matter 240/300 Energy 95/100 System Corruption 2% Temperature Warning (357) Movement Walking (120) Location -10/Materials Parts ------- > --- POWER (1) -------- (None) > --- PROPULSION (2) --- Aluminum Leg > --- UTILITY (2) ------ Machine Analyzer > --- WEAPON (2) ------- Particle Gun > --- INVENTORY (5) ---- Medium Battery (150) Sensor Array Seismic Detector Utility Shielding Peak State ------------ > --- POWER ------------ Ion Engine > --- PROPULSION ------- Aluminum Leg Aluminum Leg > --- UTILITY ---------- Machine Analyzer Propulsion Shielding > --- WEAPON ----------- Particle Gun Assault Rifle > --- INVENTORY -------- Medium Battery Seismic Detector [Rating: 10] Favorites ----------- Power Light Ion Engine Engine Light Ion Engine Propulsion Aluminum Leg Leg Aluminum Leg Utility Machine Analyzer Device Terrain Scanner Storage High-capacity Storage Unit Processor Machine Analyzer Protection Propulsion Shielding Weapon Assault Rifle Energy Gun Particle Gun Ballistic Gun Assault Rifle Build | -11 -10 ------- Run | Yrd Mat Slots Evolved . | . . Power . | . . Propulsion . | . . Utility . | . . Weapon . | . . Parts Attached 18 | 6 12 Power 3 | 1 2 Engine 3 | 1 2 Core . | . . Reactor . | . . Propulsion 5 | 2 3 Treads . | . . Leg 5 | 2 3 Wheel . | . . Hover . | . . Flight . | . . Utility 5 | . 5 Device 1 | . 1 Storage 1 | . 1 Processor 2 | . 2 Hackware . | . . Protection 1 | . 1 Artifact . | . . Weapon 5 | 3 2 Energy Gun 2 | . 2 Energy Cannon . | . . Ballistic Gun 3 | 3 . Ballistic Cannon . | . . Launcher . | . . Special Weapon . | . . Impact Weapon . | . . Slashing Weapon . | . . Piercing Weapon . | . . Special Melee Weapon . | . . Unidentified Prototypes . | . . Parts Lost 7 | . 7 Power 2 | . 2 Propulsion 1 | . 1 Utility 2 | . 2 Weapon 2 | . 2 Highest Loss Streak 4 | . 4 To Critical Strikes . | . . Average Slot Usage (%) 92 | . 92 Engine 13 | . 13 Leg 28 | . 28 Device 1 | . 1 Processor 11 | . 11 Protection 8 | . 8 Energy Gun 5 | . 5 Ballistic Gun 21 | . 21 Naked Turns . | . . Heaviest Build 11 | 7 11 Greatest Support 20 | 20 20 Greatest Overweight (x) 1 | 1 1 Average Overweight (x) . | . . Largest Inventory Capacity 20 | 5 20 Average Capacity 5 | 5 5 Most Carried 5 | 5 4 Average Carried 1 | . 1 Final Capacity 5 | 5 5 Final Carried 4 | . 4 Class Distribution -------------------- 78% | Mutant 21% | Scavenger-Mutant Dominant Class ---------------- Mutant | -10/Materials Resources | -11 -10 ----------- Run | Yrd Mat Matter Collected 549 | 167 382 Remotely . | . . Salvage Created 426 | . 426 Parts 36 | . 36 Haulers Intercepted . | . . Recyclers Shooed . | . . Parts Field Recycled . | . . Retrieved Matter . | . . Parts Self-Destructed . | . . Prevented . | . . Kills | -11 -10 ------- Run | Yrd Mat Combat Hostiles Destroyed 12 | . 12 Guns 12 | . 12 Classes Destroyed 6 | . 6 Builder 1 | . 1 Tunneler 1 | . 1 Mechanic 1 | . 1 Watcher 1 | . 1 Swarmer 6 | . 6 Grunt 6 | . 6 Best Kill Streak 6 | . 6 Combat Bots Only 3 | . 3 Max Kills in Single Turn 2 | . 2 Gunslinging 1 | . 1 Exploded . | . . Melee . | . . Uniques/NPCs Destroyed . | . . Combat | -11 -10 -------- Run | Yrd Mat Hostile Shots Fired 103 | . 103 Missed 24 | . 24 Damage Taken 945 | . 945 Core 260 | . 260 Absorbed by Shields . | . . Redirected to Shielding 52 | . 52 Core Remaining (%) 100 | 100 . Volleys Fired 53 | . 53 Largest 2 | . 2 Hottest 105 | . 105 Shots Fired 95 | . 95 Gun 95 | . 95 Cannon . | . . Launcher . | . . Special . | . . Kinetic 63 | . 63 Thermal 32 | . 32 Explosive . | . . Electromagnetic . | . . Robot Hit Streak 8 | . 8 Robot Miss Streak 5 | . 5 Penetration Max . | . . Secondary Targets 2 | . 2 Max Gunslinging Chain 1 | . 1 Shots Hit Robots 46 | . 46 Core Hits 25 | . 25 Critical Kills . | . . Critical Parts Destroyed . | . . Critical Strikes 1 | . 1 Burn 1 | . 1 Melee Attacks . | . . Impact . | . . Slashing . | . . Piercing . | . . Sneak Attacks . | . . Combat Hostiles . | . . Follow-up Attacks . | . . Damage Inflicted 643 | . 643 Guns 643 | . 643 Cannons . | . . Explosions . | . . Melee . | . . Ramming . | . . Kinetic 451 | . 451 Thermal 192 | . 192 Explosive . | . . Electromagnetic . | . . Impact . | . . Slashing . | . . Piercing . | . . Highest Corruption 2 | . 2 Average Corruption 2 | . 2 Corruption Purged . | . . Corruption Blocked . | . . Effects 6 | . 6 Message Errors 1 | . 1 Matter Fused 3 | . 3 Data Loss (minor) 1 | . 1 Data Loss (major) 1 | . 1 Overload Shots . | . . Overflow Damage . | . . Projectiles . | . . Explosions . | . . Melee . | . . Knockbacks . | . . Impact . | . . Kinetic . | . . Secondary . | . . Self-Inflicted Damage . | . . Shots . | . . Rammed . | . . Targets Rammed . | . . Kicked . | . . Crushed . | . . Highest Temperature 523 | . 523 Average Temperature 202 | . 202 Received Heat Transfer 483 | . 483 Effects 4 | . 4 Shutdowns 1 | . 1 Energy Bleed 1 | . 1 Matter Decay 1 | . 1 Damage (core) 1 | . 1 Siege Activations . | . . Robots Corrupted . | . . Combat Hostiles . | . . Parts Fried . | . . Impact Corruptions . | . . Robots Melted . | . . Combat Hostiles . | . . Parts Melted 1 | . 1 Heat Transferred 508 | . 508 Parts Sabotaged . | . . Parts Stolen . | . . Parts Stripped . | . . Power Chain Reactions . | . . Alert | -11 -10 ------- Run | Yrd Mat Peak Influence 197 | . 197 Initial . | . . Average 102 | . 108 Maximum Alert Level . | . . Low Security (%) 100 | 100 100 Level 1 . | . . Level 2 . | . . Level 3 . | . . Level 4 . | . . Level 5 . | . . High Security . | . . Max Security . | . . Squads Dispatched 3 | . 3 Investigation 2 | . 2 Extermination . | . . Reinforcement 1 | . 1 Assault . | . . Garrison . | . . Intercept . | . . Searches Triggered . | . . Construction Impeded . | . . Haulers Reinforced . | . . Active Scanning Responses . | . . Cargo Convoy Interrupts . | . . Stealth | -11 -10 --------- Run | Yrd Mat Distress Signals . | . . Communications Jammed . | . . Distress Signals . | . . Times Spotted 29 | . 29 Peak Tracking Total 5 | . 5 Tactical Retreats 1 | . 1 Traps | -11 -10 ------- Run | Yrd Mat Traps Triggered 4 | . 4 Indirectly . | . . Trap Hack Attempts . | . . Triggered . | . . Disarmed . | . . Reprogrammed . | . . Reused . | . . Traps Extracted . | . . Installed . | . . Triggered . | . . Machines | -11 -10 ---------- Run | Yrd Mat Machines Disabled 2 | . 2 Max in Single Turn 1 | . 1 Machines Repaired . | . . Machines Dismantled . | . . Machines Sabotaged . | . . Overloaded Fab Kills . | . . Hacking | -11 -10 --------- Run | Yrd Mat Machines Accessed 8 | . 8 Terminals 8 | . 8 Fabricators . | . . Repair Stations . | . . Recycling Units . | . . Scanalyzers . | . . Garrison Access . | . . Total Hacks 26 | . 26 Successful 14 | . 14 Failed 12 | . 12 Catastrophic 3 | . 3 Database Lockouts . | . . Manual . | . . Terminals 26 | . 26 Fabricators . | . . Repair Stations . | . . Recycling Units . | . . Scanalyzers . | . . Garrison Access . | . . Terminal Hacks 14 | . 14 Robot Analysis 1 | . 1 Prototype ID Bank 1 | . 1 Alert Level 2 | . 2 Locate Traps 1 | . 1 Dispatch Records 3 | . 3 Patrol Status 1 | . 1 Reinforcement Status 1 | . 1 Hauler Manifests 3 | . 3 Zone Layout 1 | . 1 Fabricator Hacks . | . . Repair Station Hacks . | . . Recycling Unit Hacks . | . . Scanalyzer . | . . Garrison Access Hacks . | . . Unauthorized Hacks . | . . Terminals . | . . Fabricators . | . . Repair Stations . | . . Recycling Units . | . . Scanalyzers . | . . Garrison Access . | . . Data Cores Recovered . | . . Used . | . . Hacking Detections 8 | . 8 Full Trace Events 5 | . 5 Feedback Events . | . . Feedback Blocked . | . . Robot Schematics Acquired . | . . Robots Built . | . . Authchips . | . . Time . | . . Total Robot Build Rating . | . . Part Schematics Acquired . | . . Parts Built . | . . Authchips . | . . Time . | . . Total Part Build Rating . | . . Parts Repaired . | . . Time . | . . Parts Recycled . | . . Recycled Matter . | . . Retrieved Matter . | . . Retrieved Components . | . . Parts Scanalyzed . | . . Part Schematics Acquired . | . . Parts Damaged . | . . Bothacking | -11 -10 ------------ Run | Yrd Mat Used RIF Installer . | . . Robots Hacked . | . . Non-combat . | . . Combat . | . . Robot Hacks Applied . | . . Relay Couplers Released . | . . Fabnet Peak Effective % . | . . Robots Rewired . | . . Allies Hacked . | . . Hacks Repelled . | . . Allies | -11 -10 -------- Run | Yrd Mat Total Allies . | . . Largest Group . | . . Highest-Rated Group . | . . Highest-Rated Ally . | . . Total Orders . | . . Ally Attacks . | . . Total Damage . | . . Kills . | . . Allies Corrupted . | . . Allies Melted . | . . Intel | -11 -10 ------- Run | Yrd Mat Robot Analysis Total 1 | . 1 Derelict Logs Recovered . | . . Drone Launches . | . . Drone Recoveries . | . . Exploration | -11 -10 ------------- Run | Yrd Mat Turns Passed 848 | 48 800 Spaces Moved 527 | 40 487 Core 23 | 23 . Treads . | . . Legs 504 | 17 487 Wheels . | . . Hover . | . . Flight . | . . Fastest Speed 50 | 50 120 Average Speed 121 | 84 124 Slowest Speed 190 | 120 190 Overloaded Moves . | . . Propulsion Burnouts . | . . Robots Hopped . | . . Cave-ins Triggered . | . . Exploration Rate (%) 45 | 3 87 Regions Visited 1 Branch Regions . Pre-discovered Areas . | . . Known Exits Taken . | . . Unknown Exits Taken 1 | 1 . Scrap Searched . | . . Spaces Dug . | . . Terrain Destroyed . | . . Melee . | . . Projectile . | . . AOE . | . . Terrain Rammed . | . . Walls Destroyed . | . . Machines Disabled . | . . Actions | -11 -10 --------- Run | Yrd Mat Total 641 | 54 587 Wait 15 | 2 13 Move 526 | 39 487 Hop . | . . Pick Up 22 | 6 16 Fast Attach . | . . Attach 14 | 6 8 Detach . | . . Swap 4 | . 4 Drop 7 | 1 6 Fire 53 | . 53 Melee . | . . Ram . | . . Kick . | . . Crush . | . . Escape Stasis . | . . Rewire . | . . Trap . | . . Miscellaneous . | . . Route ------- -11/Scrapyard -10/Materials (discovered 4 exits: [*Mat x2] / [*Min x2]) History --------- Turn | Location | Event 6 | -11/Scrapyard | Discovered new exit (range 15) 49 | -11/Scrapyard | Entered Materials 233 | -10/Materials | Discovered new exit (range 6) 347 | -10/Materials | Discovered new exit (range 4) 349 | -10/Materials | Build established: Mutant 444 | -10/Materials | Discovered new exit (range 6) 549 | -10/Materials | Derelicts attacked the area 610 | -10/Materials | Discovered new exit (range 16) 802 | -10/Materials | Core integrity fell below 50% 829 | -10/Materials | Core integrity fell below 20% 849 | -10/Materials | Destroyed by G-34 Mercenary with Small Laser Last Messages --------------- G-34 Mercenary heat spikes uncontrollably. G-34 Mercenary heat damages Aluminum Leg. G-34 Mercenary heat spikes uncontrollably. G-34 Mercenary overheating. G-34 Mercenary heat short circuits Aluminum Leg. G-34 Mercenary overheating. Ion Engine melted. G-34 Mercenary destroyed. Overheating: Matter decay (-55). Power failure, Ion Engine shutdown. Overheating: Core damaged (-32). Overheating: Energy bleed (-32). Sml. Laser destroyed. Propulsion Shielding destroyed. Atomic Centrifuge disabled. Ion Engine destroyed. Aluminum Leg destroyed. System corrupted: Substantial component data lost. K-01 Serf collects debris. Map ----- +----------------------------------------------------+ | | | | | | | | | | | | | | | | | | | | | | | | | | | ????????########???????#???????????? | | ????????# """ #??????? ???????????? | | ????????# """ =#?"""?""" """???????? | | ????????# """ #?"""?""" """???????? | | ????????# #?"""?""" """???????? | | ????????# #???????? ?????????? | | ????????# #???????? ?????????? | | ############+########+###+#######??? | | #??? | | #??? | | " gg""" #??? | | ############/####### T "" #??? | | ?????????# #??# " @ "" #??? | | ?????????# """ #??# gg #??? | | ?????????# """ #??# kk #??? | | ########## """ #??# % ##"T"### #??? | | + =*#??# * ##"""#?# #??? | | ######## %[#??# ######?# #??? | | ######?######+#??# ########+#### | | #??????# #??# # # | | #??????# #??# ^^^^^<^# # | | ######## #### # # | | = * ## + """ # | | ########### # """ # | | ###?????????# T # """ # | | #?????????# ######## | | " ##??###???# ###+### #??????? | | " # """ #???######## # #??????? | | " # "Y" #???######## "" # #??????? | | # #???# # T" # #??????? | | # """ #???# """ # "" # #??????? | | ### """ #???# """ # + #??????? | | ?## """ #???# """ # # #??????? | | ### #???# # ### #??????? | | ##+######## """ # #?# #??????? | | = [ # """ # #?# #??????? | | ! [ + """ ######?# #??????? | +----------------------------------------------------+ Best States ------------- Heat Dissipation 25 Energy Generation 10 Energy Capacity 250 Matter Stores 280 Matter Capacity 300 Sight Range 16 Terrain Scan Range 14 Terrain Scan Density 85 Propulsion Shielding 33 Evasion (%) 55 Item Schematics ----------------- None Robot Schematics ------------------ None Fabricated ------------ Nothing Alien Tech Used ----------------- None Achievements -------------- None Challenges ------------ None Game ------ Seed CoordinationHugeExpander Manual? 0 Play Time 00:13:55 Cumulative 7.8 hours Start 2024.05.29 @ 15:04:17 End 2024.05.29 @ 15:15:08 Sessions 1 Manual Loads 0 Difficulty Rogue Special Mode None Game No. 19 Rogue 19 Adventurer 0 Explorer 0 Win Type - Total 0 Types 0/0/0/0/0/0/0/0/0 Lore% 10 Gallery% 14 Achievement% 10 Wizard Run 0 Options --------- Layout 1 ASCII 0 Keyboard 0 Movement Mouse Keybinds 0 Fullscreen 1 Font 24/Smallcaps Map View 50x35 Zoom Use 0% Tactical HUD 0 Map Filters NONE Filters NONE Steam 1 RUN: 7e637a91-9400-42fa-8850-8670babeaa28